Workbook

Sheet 一般收支调整
A1: 附表1：
A2: 阎良区2019年一般公共预算收支调整表
E3: 单位：万元
A4: 项目 | B4: 一般公共预算收入
B5: 年初预算 | C5: 调增金额 | D5: 调减金额 | E5: 调整预算
A6: 区级一般公共预算收入 | B6: 69,200 | E6: =B6+C6-D6 -> 69,200
A7: 转移性收入 | B7: 19,000 | C7: =C8+C9 -> 82,912 | E7: =B7+C7-D7 -> 101,912
A8: 其中：新增一般债券转贷收入 | E8: 0
A9: 专项转移支付收入 | C9: 82,912 | E9: 82,912
A10: 调入预算稳定调节基金 | C10: 4,287 | E10: 4,287
A11: 上年结余 | E11: 0 | G11: =C9+政府性基金收支调整表!C6 -> 85707
A12: 调入资金 | B12: 48,000 | D12: =31000-5000 -> 26,000 | E12: 22,000 | H12: 1376
A13: 一般公共预算总收入合计 | B13: =B6+B7+B12+B10+B11 -> 136,200 | C13: =C6+C7+C12+C10+C11 -> 87,199 | D13: =D6+D7+D12+D10+D11 -> 26,000 | E13: =E6+E7+E12+E10+E11 -> 197,399 | F13: =C13-D13 -> 61199
A15: 项目 | B15: 一般公共预算支出
B16: 年初预算 | C16: 调增金额 | D16: 调减金额 | E16: 调整预算 | G16: =C13-D13 -> 61199
A17: 区本级一般公共预算支出 | B17: 121,820 | C17: =82912+C10 -> 87,199 | D17: =31000-5000 -> 26,000 | E17: =B17+C17-D17 -> 183,019
A18: 转移性支出 | B18: =SUM(B19:B20) -> 14,380 | C18: =SUM(C19:C20) -> 0 | D18: =SUM(D19:D20) -> 0 | E18: 14,380
A19: 其中：新增一般债券转贷支出 | B19: 8,520 | E19: 8,520
A20: 上解上级支出 | B20: 5,860 | E20: 5,860 | G20: =C13-D13 -> 61199
E21: 0
E22: 0
A23: 一般公共预算总支出合计 | B23: =B17+B18 -> 136,200 | C23: =C17+C18 -> 87,199 | D23: =D17+D18 -> 26,000 | E23: =E17+E18 -> 197,399 | I23: =E23+政府性基金收支调整表!E15 -> 246194

Sheet 政府性基金收支调整表
A1: 附表2：
A2: 阎良区2019年政府性基金预算收支调整表
E3: 单位：万元
A4: 项目 | B4: 政府性基金收入
B5: 年初预算 | C5: 调增金额 | D5: 调减金额 | E5: 调整预算
A6: 政府性基金年初预算收入 | B6: 57,000 | C6: 2,795 | D6: =31000-5000 -> 26,000 | E6: =B6+C6-D6 -> 33,795
A7: 转移性收入 | C7: =C8 -> 15,000 | D7: =D8 -> 0 | E7: =B7+C7-D7 -> 15,000 | G7: =B6-D6 -> 31000
A8: 其中：新增专项债券收入 | C8: 15,000 | E8: =B8+C8-D8 -> 15,000
E9: =B9+C9-D9 -> 0
A10: 政府性基金总收入 | B10: =SUM(B6:B9) -> 57,000 | C10: =SUM(C6:C7) -> 17,795 | D10: =SUM(D6:D7) -> 26,000 | E10: =B10+C10-D10 -> 48,795
A11: 项目 | B11: 政府性基金支出
A12: 政府性基金年初预算支出 | B12: 9,000 | C12: 2,795 | E12: =B12+C12-D12 -> 11,795
A13: 专项债券转贷支出 | C13: 15,000 | E13: =B13+C13-D13 -> 15,000 | G13: =D15-C15 -> 8205
A14: 转移性支出 | B14: 48,000 | D14: =31000-5000 -> 26,000 | E14: =B14+C14-D14 -> 22,000
A15: 政府性基金总支出 | B15: =SUM(B12:B14) -> 57,000 | C15: =SUM(C12:C14) -> 17,795 | D15: =SUM(D12:D14) -> 26,000 | E15: =SUM(E12:E14) -> 48,795
D17: =D15-C15 -> 8205
